{"text_format":"1","workbook":"xlsx","n_sheets":3,"sheets":["Quote Form","Instructions","Drop Down Lists"],"not_rendered":{"charts":0,"images":1,"macros":1,"external_links":0,"defined_names":4,"comments":0,"pivot_tables":0},"unopened":[],"bounds":{"document_bytes":16777216,"sheet_cells":100000,"rows_first":2000,"rows_last":500,"rows_between":2000,"halvings":0,"cell_chars":16384,"cell_head_chars":4096},"cells_cut":0,"cells_raw":0,"read":"whole","date_system":"1900"}

{"sheet":"Quote Form","index":0,"n_rows":60,"n_cols":11,"rows_kept":60,"cut":false,"hidden":false,"merged":[[0,6,0,7],[10,5,10,7],[11,5,11,7],[5,5,5,7],[13,5,13,7],[2,0,2,7],[3,0,3,7],[5,0,5,1],[6,0,6,1],[7,0,7,1],[6,5,6,7],[9,3,9,7],[9,0,9,2],[10,0,10,1],[12,5,12,7],[22,0,22,1],[28,2,28,3],[11,0,11,1],[12,0,12,1],[24,2,24,3],[25,2,25,3],[29,2,29,3],[30,2,30,3],[29,0,29,1],[30,0,30,1],[13,0,13,1],[15,0,15,1],[26,2,26,3],[27,2,27,3],[16,0,16,1],[17,0,17,1],[20,0,20,7],[22,2,22,3],[23,2,23,3],[23,0,23,1],[28,0,28,1],[31,2,31,3],[32,2,32,3],[34,2,34,3],[35,2,35,3],[44,2,44,3],[45,2,45,3],[36,2,36,3],[37,2,37,3],[38,2,38,3],[39,2,39,3],[40,2,40,3],[4,1,4,6],[0,4,0,5],[58,0,59,7],[57,0,57,2],[1,6,1,7],[51,2,51,3],[52,2,52,3],[46,2,46,3],[47,2,47,3],[48,2,48,3],[49,2,49,3],[50,2,50,3],[41,2,41,3],[42,2,42,3],[43,2,43,3],[33,2,33,3],[24,0,24,1],[25,0,25,1],[26,0,26,1],[27,0,27,1],[38,0,38,1],[33,0,33,1],[34,0,34,1],[35,0,35,1],[36,0,36,1],[37,0,37,1],[31,0,31,1],[32,0,32,1],[52,0,52,1],[43,0,43,1],[44,0,44,1],[45,0,45,1],[46,0,46,1],[47,0,47,1],[48,0,48,1],[51,0,51,1],[49,0,49,1],[50,0,50,1],[39,0,39,1],[40,0,40,1],[41,0,41,1],[42,0,42,1]]}
[null,null,null,{"$f":"IF(ISBLANK(G1),\"\",\"Pay Item(s):\")","v":""},null,null,null,null,null,1]
[null,null,null,null,null,null,"Use dropdown to identify winning/non-selected bid",null,null,2]
["Florida Department of Environmental Protection\nPetroleum Restoration Program\nStandardized Quote Form",null,null,null,null,null,null,null,null,"3\n3\n3"]
["This form is required to submit a quote to the Petroleum Restoration Program (PRP) for goods and services not covered by the Agency Term Contract fixed price schedule or the LSSI Work Order template or fixed rate schedules.  To be considered, standardized quotes must be submitted concurrently to the site manager and the requesting contractor listed below, along with any backup documentation as needed.  Please see instructions tab for more details.  NOTE: Additional quotes may be requested.",null,null,null,null,null,null,null,null,"This form is required to submit a quote to the Petroleum Restoration Program (PRP) for goods and services not covered by the Agency Term Contract fixed price schedule or the LSSI Work Order template or fixed rate schedules.  To be considered, standardized quotes must be submitted concurrently to the site manager and the requesting contractor listed below, along with any backup documentation as needed.  Please see instructions tab for more details.  NOTE: Additional quotes may be requested.\n"]
[null,"*Site Manager and ATC must be emailed the quote request and response concurrently or the quote will not be considered.*"]
["Facility Name:",null,null,null,"Request Date:",null,null,null,null,4]
["9-Digit Facility ID #:",null,null,null,"Date Quote Expires:",null,null,null,null,5]
["SPI # (required):",null,null,null,"(recommend 3 months or more)",null,null,null,null,6]
[]
["Quote Requested by",null,null,"Quote Requested from (if in-house, enter PRP Contractor information)",null,null,null,null,null,8]
[" PRP Contractor:",null,null,null,"Subcontractor Company Name:",null,null,null,null,9]
["Contractor Contact:",null,null,null,"Subcontractor Contact/Title:",null,null,null,null,10]
["Contractor Phone:",null,null,null,"Subcontractor Phone:",null,null,null,null,11]
["Contractor Email:",null,null,null,"Subcontractor Email:",null,null,null,null,12]
[null,null,null,null,null,null,null,null,null,13]
["Site Manager Name:",null,null,null,null,null,null,null,null,14]
["Site Manager Phone:",null,null,null,null,null,null,null,null,15]
["Site Manager Email:",null,null,null,null,null,null,null,null,16]
[null,null,null,null,null,null,null,null,null,17]
["Project Description:",null,null,null,null,null,null,null,null,18]
[null,null,null,null,null,null,null,null,null,{"$f":"A21","v":0}]
[null,null,null,null,null,null,null,null,null,20]
["Item #",null,"Item Description",null,"Unit of Measure","Qty","Price","Extended Price",true,"Item \nDescription"]
[null,null,null,null,null,null,null,{"$f":"SUM(F24*G24)","v":0},{"$f":"IF(G24<>\"\",TRUE,FALSE)","v":false},null,{"$f":"C24","v":0}]
[null,null,null,null,null,null,null,{"$f":"SUM(F25*G25)","v":0},{"$f":"IF(G25<>\"\",TRUE,FALSE)","v":false},null,{"$f":"C25","v":0}]
[null,null,null,null,null,null,null,0,false,null,0]
[null,null,null,null,null,null,null,0,false,null,0]
[null,null,null,null,null,null,null,0,false,null,0]
[null,null,null,null,null,null,null,0,false,null,0]
[null,null,null,null,null,null,null,0,false,null,0]
[null,null,null,null,null,null,null,0,false,null,0]
[null,null,null,null,null,null,null,0,false,null,0]
[null,null,null,null,null,null,null,0,false,null,0]
[null,null,null,null,null,null,null,0,false,null,0]
[null,null,null,null,null,null,null,0,false,null,0]
[null,null,null,null,null,null,null,0,false,null,0]
[null,null,null,null,null,null,null,0,false,null,0]
[null,null,null,null,null,null,null,0,false,null,0]
[null,null,null,null,null,null,null,0,false,null,0]
[null,null,null,null,null,null,null,0,false,null,0]
[null,null,null,null,null,null,null,0,false,null,0]
[null,null,null,null,null,null,null,0,false,null,0]
[null,null,null,null,null,null,null,0,false,null,0]
[null,null,null,null,null,null,null,0,false,null,0]
[null,null,null,null,null,null,null,0,false,null,0]
[null,null,null,null,null,null,null,0,false,null,0]
[null,null,null,null,null,null,null,0,false,null,0]
[null,null,null,null,null,null,null,0,false,null,0]
[null,null,null,null,null,null,null,0,false,null,0]
[null,null,null,null,null,null,null,0,false,null,0]
[null,null,null,null,null,null,null,0,false,null,0]
[null,null,null,null,null,null,null,0,false,null,0]
[null,null,null,null,null,null,null,0,false,null,0]
[null,null,null,null,null,null,"Subtotal:",{"$f":"SUM(H24:H53)","v":0},true,52]
[null,null,null,null,null,null,"Shipping & Handling:",null,true,53]
["SUBCONTRACTOR: By submitting this form, the subcontractor attests that they are not a related party to the PRP Contractor that requested the quote.",null,null,null,null,null,"Tax:",null,true,54]
[null,null,null,null,null,null,"Total:",{"$f":"SUM(H54:H56)","v":0},true,55]
[null,null,null,null,null,null,null,null,true,56]
["Florida has a very broad public records law and any communications to or from state officials or employees are considered public records and will be made available to the public and media upon request.  Please do not include in your response any confidential disclaimers or documentation designated or marked as “trade secret,” “proprietary,” “confidential,” etc. See, e.g., sections 119.071(1)(f), 626.84195, and 815.045, F.S.; and defined in sections 688.002, 501.171(11)(d), and 812.081, F.S.",null,null,null,null,null,null,null,true,60]
[null,null,null,null,null,null,null,null,true,61]

{"sheet":"Instructions","index":1,"n_rows":0,"n_cols":0,"rows_kept":0,"cut":false,"hidden":false,"merged":[]}

{"sheet":"Drop Down Lists","index":2,"n_rows":50,"n_cols":4,"rows_kept":50,"cut":false,"hidden":true,"merged":[]}
["Unit of Measure",null,null,"WINNING BID"]
["Full Day",null,null,"NON-SELECTED"]
["NOT BILLABLE"]
["Other"]
["Per 2 Hours"]
["Per 2 Hrs "]
["Per Additional Tech Component"]
["Per Agreement"]
["Per Boring"]
["Per Core "]
["Per Cubic Yard"]
["Per Day"]
["Per 1/2 Day (LSSI Only)"]
["Per Drawings"]
["Per Drum"]
["Per Engineering Controls Installation"]
["Per Foot"]
["Per Gallon"]
["Per Hour"]
["Per Linear Foot of Trench"]
["Per Month"]
["Per Package"]
["Per Person, Per Day"]
["Per Plan"]
["Per Report"]
["Per Review"]
["Per Review and Certification"]
["Per Round Trip"]
["Per Sample"]
["Per Sampling Event"]
["Per Set of Drawings"]
["Per Site"]
["Per Spoon "]
["Per Sq. Foot"]
["Per Sq. Foot/Day"]
["Per Sq. Foot/Month"]
["Per Sq. Foot/Week"]
["Per Square Foot"]
["Per Startup"]
["Per Survey"]
["Per System "]
["Per Tank"]
["Per Test"]
["Per Ton"]
["Per Vault"]
["Per Visit"]
["Per Week"]
["Per Well "]
["Percent\nSurcharge"]
["Reimbursable*"]